[Event "CCT Julius Baer-D1 2024"]
[Site "Online"]
[Date "2024.09.27"]
[Round "1.1"]
[White "Firouzja, Alireza"]
[Black "Bigfish"]
[Result "1-0"]
[ECO "D52"]
[WhiteElo "2856"]
[BlackElo "2828"]
[Annotator "TA"]
[PlyCount "91"]
[EventDate "2024.09.25"]
[EventType "swiss"]
[EventCountry "NET"]
[SourceTitle "playchess.com"]
[Source "ChessBase"]
[SourceQuality "1"]
[TimeControl "600+2"]

{[%evp 18,91,30,29,30,29,5,22,37,41,45,0,13,19,25,20,31,-10,35,37,38,38,29,27,42,27,38,36,45,45,36,23,39,58,38,38,95,100,94,96,89,86,114,94,156,135,195,178,180,178,189,182,347,353,627,661,677,575,683,647,687,651,669,107,741,801,831,838,838,830,1825,1856,2448,1885,4833,2526]} 1. d4 {[%emt 0:00:02]} d5 {[%emt 0:00:06]} 2. c4 {[%emt 0:00:01]} c6 {[%emt 0:00:01]} 3. Nf3 {[%emt 0:00:02]} Nf6 {[%emt 0:00:08]} 4. Nc3 {[%emt 0:00:01]} e6 {[%emt 0:00:03]} 5. Bg5 {[%emt 0:00:01]} Nbd7 {[%emt 0:00:19]} 6. e3 {[%emt 0:00:12]} Qa5 {[%emt 0:00:09]} 7. cxd5 {[%emt 0:00:17]} Nxd5 {[%emt 0:00:25]} 8. Qd2 {[%emt 0:00:03]} Bb4 {[%emt 0:00:52]} 9. Rc1 {[%emt 0:00:01]} h6 {[%emt 0:00:24]} 10. Bh4 {[%emt 0:00:04]} O-O {[%emt 0:00:11][%cal Oe6e5]} 11. a3 {[%emt 0:00:49]} Bxc3 {[%emt 0:01:09]} 12. bxc3 {[%emt 0:00:02]} N5f6 {[%emt 0:00:09] The position is equal.} 13. Bd3 {[%emt 0:00:14]} b6 {[%emt 0:00:04]} 14. e4 {[%emt 0:00:31]} Ba6 {[%emt 0:00:07]} 15. c4 {[%emt 0:00:01]} Qxd2+ {[%emt 0:01:04]} 16. Kxd2 {[%emt 0:00:00]} Rfe8 {[%emt 0:00:14]} 17. e5 {[%emt 0:00:20]} Nh5 {[%emt 0:00:02]} 18. Be4 {[%emt 0:00:14]} Rac8 {[%emt 0:00:02]} 19. g4 {[%emt 0:00:23]} Nf4 {[%emt 0:00:06]} 20. Bg3 {[%emt 0:00:02]} Ng6 {[%emt 0:00:33]} 21. Rhe1 $1 $36 {[%emt 0:00:02][%mdl 2048] White has the initiative.} c5 {[%emt 0:00:15]} 22. d5 {[%emt 0:00:04]} exd5 {[%emt 0:00:01]} 23. cxd5 {[%emt 0:00:13]} Rcd8 {[%emt 0:00:35]} (23... Ndxe5 $6 24. Bxe5 Nxe5 25. Nxe5 Rxe5 26. Bh7+ Kxh7 27. Rxe5 $16) (23... Ngxe5 $6 24. Bxe5 (24. Nxe5 Nxe5 25. Bxe5 Rxe5 $16) 24... Nxe5 25. Nxe5 Rxe5 26. Bh7+ Kxh7 27. Rxe5 $16) 24. Kc3 {[%emt 0:00:11]} Bb7 {[%emt 0:00:13]} (24... Ngxe5 25. Nxe5 Nxe5 26. Bxe5 Rxe5 27. Bh7+ Kxh7 28. Rxe5 $16) 25. a4 {[%emt 0:00:23]} Ndf8 {[%emt 0:00:48]} (25... Ngxe5 26. Nxe5 Nxe5 27. Bxe5 Rxe5 28. Bh7+ Kxh7 29. Rxe5 $16) 26. Rcd1 {[%emt 0:00:09]} Ne7 {[%emt 0:00:02]} (26... a6 $1 $14) 27. d6 $1 $16 {[%emt 0:00:06]} Bxe4 {[%emt 0:00:02]} 28. Rxe4 {[%emt 0:00:22]} Nc6 {[%emt 0:00:01]} 29. Nh4 {[%emt 0:00:07] White has more active pieces.} f6 {[%emt 0:00:10]} 30. f4 {[%emt 0:00:15]} fxe5 {[%emt 0:00:11]} ({Black should play} 30... g6 31. Kc4 Kg7) 31. fxe5 {[%emt 0:00:01]} Re6 {[%emt 0:00:12]} (31... Rd7 $16 32. Re3 Ne6) 32. Kc4 {[%emt 0:00:56]} Rde8 {[%emt 0:00:02]} 33. Nf5 {[%emt 0:00:15]} Nd7 {[%emt 0:00:16][%cal Og8f7]} 34. Rde1 {[%emt 0:00:24]} a6 $2 {[%emt 0:00:16]} (34... Ncxe5+ $2 {perishes.} 35. Bxe5 Rxe5 36. Ne7+ Kh7 37. Rxe5 $18) (34... a5 35. Kb5 Rc8) 35. Kd5 $18 {[%emt 0:00:24]} Nb4+ {[%emt 0:00:12] [#]} (35... Nd8 36. Rf1 (36. Ne7+ R8xe7 37. dxe7 Rxe7 $18) 36... Kh8) 36. Rxb4 $1 {[%emt 0:00:01][%mdl 512]} cxb4 {[%emt 0:00:01]} 37. Nd4 {[%emt 0:00:03]} Rg6 {[%emt 0:00:40]} 38. e6 {[%emt 0:00:01]} Nf6+ {[%emt 0:00:07] [#]} 39. Kc6 $1 {[%emt 0:00:01]} Rxg4 {[%emt 0:00:13]} 40. d7 $2 {[%emt 0:00:02]} (40. Be5 $18 {[%cal Oe5f6] Black must now prevent Bxf6!} Rxe6 41. Nxe6 Rc4+ 42. Kb7) 40... Rd8 $2 {[%emt 0:00:06][%mdl 8192] This move loses the game for Black.} (40... Rxd4 $16 41. dxe8=B (41. dxe8=R+ Nxe8 42. Be5 Rd2 $14) 41... Nxe8) 41. Be5 {[%emt 0:00:12][%cal Oe5f6] Hoping for Bxf6! White is clearly winning.} Nxd7 {[%emt 0:00:33]} 42. exd7 {[%emt 0:00:03]} b3 {[%emt 0:00:01][%cal Bb4b3,Bb3b2][%mdl 32]} 43. Kc7 {[%emt 0:00:11]} Rxd7+ {[%emt 0:00:00]} 44. Kxd7 {[%emt 0:00:01]} b2 {[%emt 0:00:01]} 45. Rb1 {[%emt 0:00:03]} Re4 {[%emt 0:00:13]} 46. Kd6 {[%emt 0:00:01] Weighted Error Value: White=0.25 (precise) /Black=0.42.  Mistake:       	---       	Black=5      Inaccurate:     	White=2     	Black=2      OK:         	White=11    	Black=14     Strong:       	White=2     	---        Brilliant:      	White=1     	---} 1-0

[Event "CCT Julius Baer-D1 2024"]
[Site "Online"]
[Date "2024.09.27"]
[Round "1.1"]
[White "Nepomniachtchi, Ian"]
[Black "Carlsen, Magnus"]
[Result "1/2-1/2"]
[ECO "B41"]
[WhiteElo "2827"]
[BlackElo "2901"]
[Annotator "TA"]
[PlyCount "98"]
[EventDate "2024.09.25"]
[EventType "swiss"]
[EventCountry "NET"]
[SourceTitle "playchess.com"]
[Source "ChessBase"]
[SourceQuality "1"]
[TimeControl "600+2"]

{[%evp 15,98,16,47,29,37,37,51,15,37,31,33,20,49,25,14,3,0,0,7,4,-2,0,10,15,10,9,8,4,13,8,6,-3,-6,-6,0,0,0,0,0,0,14,14,25,18,33,0,2,2,2,0,0,0,0,0,0,0,0,0,0,0,0,0,0,0,0,0,0,0,0,0,0,0,0,0,0,0,0,0,0,0,0,0,0,0,0]} 1. e4 {[%emt 0:00:04]} c5 {[%emt 0:00:04]} 2. Nf3 {[%emt 0:00:01]} e6 {[%emt 0:00:12]} 3. d4 {[%emt 0:00:04]} cxd4 {[%emt 0:00:01]} 4. Nxd4 {[%emt 0:00:00]} a6 {[%emt 0:00:01]} 5. c4 {[%emt 0:00:02]} Nf6 {[%emt 0:00:02]} 6. Nc3 {[%emt 0:00:01]} Qc7 {[%emt 0:00:01]} 7. Be2 {[%emt 0:00:10]} Bb4 {[%emt 0:00:10]} 8. Qd3 {[%emt 0:00:04]} Nc6 {[%emt 0:00:07]} 9. O-O {[%emt 0:00:22]} O-O {[%emt 0:00:02]} 10. Bg5 {[%emt 0:00:42][%cal Bc1g5,Bg5h4,Bh4g3][%mdl 32]} Be7 {[%emt 0:00:02][%cal Of6g4]} 11. Nf3 {[%emt 0:01:57] White is slightly better.} b6 {[%emt 0:00:12]} 12. Rac1 {[%emt 0:00:06]} Bb7 {[%emt 0:00:49][%cal Bc8b7,Bb7c6,Bc6d7][%mdl 32]} 13. Bh4 {[%emt 0:00:49]} Rfd8 {[%emt 0:00:41]} 14. Bg3 {[%emt 0:00:08]} d6 {[%emt 0:00:15]} 15. Nd5 {[%emt 0:00:41]} exd5 {[%emt 0:00:01]} 16. cxd5 {[%emt 0:00:01][%cal Of3d4] Strongly threatening Nd4!} Qd7 $1 {[%emt 0:00:01]} 17. dxc6 {[%emt 0:00:23]} Bxc6 {[%emt 0:00:00]} 18. e5 {[%emt 0:00:17]} dxe5 {[%emt 0:01:11]} 19. Qxd7 {[%emt 0:00:05]} Bxd7 {[%emt 0:00:00]} 20. Nxe5 {[%emt 0:00:01]} Bb5 {[%emt 0:00:01] [#]} 21. Bf3 {[%emt 0:01:47]} Rac8 {[%emt 0:00:10] [#]} (21... Bxf1 22. Nc6) 22. Nc6 $1 {[%emt 0:00:32]} Bxc6 {[%emt 0:00:07]} 23. Rxc6 {[%emt 0:00:02]} Rxc6 {[%emt 0:00:07]} 24. Bxc6 {[%emt 0:00:01]} Bc5 {[%emt 0:00:25]} 25. Bf4 {[%emt 0:00:14]} Rd4 {[%emt 0:00:15]} 26. Be5 {[%emt 0:00:35] This pair of bishops is nice.} Rc4 {[%emt 0:00:18]} 27. Bf3 {[%emt 0:00:02]} h5 {[%emt 0:00:31]} 28. g3 {[%emt 0:00:07]} Rc2 {[%emt 0:01:03] And now ...Ng4 would win.} 29. Bd1 {[%emt 0:00:09]} Rc1 {[%emt 0:00:01]} 30. Bf3 {[%emt 0:00:55]} Rxf1+ {[%emt 0:00:09] The position is equal.} 31. Kxf1 {[%emt 0:00:01]} Ng4 {[%emt 0:00:00]} 32. Bxg4 {[%emt 0:00:04]} hxg4 $11 {[%emt 0:00:00][%mdl 4096] Endgame. KB-KB} 33. Kg2 {[%emt 0:00:03]} f5 {[%emt 0:00:36]} 34. f3 {[%emt 0:00:02]} Kf7 {[%emt 0:00:06]} 35. fxg4 {[%emt 0:00:01]} fxg4 {[%emt 0:00:00]} 36. h3 {[%emt 0:00:01]} gxh3+ {[%emt 0:00:02]} 37. Kxh3 {[%emt 0:00:00]} g6 {[%emt 0:00:04]} 38. Kg4 {[%emt 0:00:02]} Ke6 {[%emt 0:00:00]} 39. Bf4 {[%emt 0:00:05]} b5 {[%emt 0:00:08]} 40. Kg5 {[%emt 0:00:04]} Kf7 {[%emt 0:00:01]} 41. Bd2 {[%emt 0:00:08]} Be7+ {[%emt 0:00:05]} 42. Kh6 {[%emt 0:00:03]} Bf8+ {[%emt 0:00:04]} 43. Kh7 {[%emt 0:00:02]} Bd6 {[%emt 0:00:04]} 44. g4 {[%emt 0:00:02]} Be5 {[%emt 0:00:08]} 45. b3 {[%emt 0:00:01]} Bd6 {[%emt 0:00:02]} 46. Bc1 {[%emt 0:00:01]} Bc5 {[%emt 0:00:10]} 47. Bd2 {[%emt 0:00:01]} Bd6 {[%emt 0:00:01]} 48. Bc1 {[%emt 0:00:01]} Bc5 {[%emt 0:00:00]} 49. Bd2 {[%emt 0:00:00]} Bd6 {[%emt 0:00:01] Weighted Error Value: White=0.05 (flawless) /Black=0.05 (flawless) .  Inaccurate:     	White=2     	Black=1      OK:         	White=19    	Black=12     Best:        	---       	Black=4      Strong:       	---       	Black=1} 1/2-1/2

[Event "CCT Julius Baer-D1 2024"]
[Site "Online"]
[Date "2024.09.27"]
[Round "1.1"]
[White "Grischuk, Alexander"]
[Black "Erigaisi, Arjun"]
[Result "1-0"]
[ECO "C79"]
[WhiteElo "2704"]
[BlackElo "2734"]
[Annotator "TA"]
[PlyCount "69"]
[EventDate "2024.09.25"]
[EventType "swiss"]
[EventCountry "NET"]
[SourceTitle "playchess.com"]
[Source "ChessBase"]
[SourceQuality "1"]
[TimeControl "600+2"]

{[%evp 11,69,39,28,30,27,26,36,31,113,112,109,120,140,123,131,118,131,110,108,97,144,139,147,154,151,151,167,185,186,148,172,167,175,187,223,131,127,132,122,140,126,132,184,173,532,535,510,488,1605,1547,1556,1477,29992,29993,29993,29987,29987,29985,29985,29986]} 1. e4 {[%emt 0:00:03]} e5 {[%emt 0:00:06]} 2. Nf3 {[%emt 0:00:01]} Nc6 {[%emt 0:00:01]} 3. Bb5 {[%emt 0:00:03]} a6 {[%emt 0:00:02]} 4. Ba4 {[%emt 0:00:01]} Nf6 {[%emt 0:00:03]} 5. O-O {[%emt 0:00:02]} d6 {[%emt 0:00:04]} 6. Bxc6+ {[%emt 0:02:07]} bxc6 {[%emt 0:00:02]} 7. Re1 {[%emt 0:00:01]} Bg4 {[%emt 0:00:16]} 8. h3 {[%emt 0:00:11]} Bxf3 {[%emt 0:00:15]} 9. Qxf3 {[%emt 0:00:00][%cal Od2d4] White is slightly better.} g6 {[%emt 0:00:00] [#]} (9... Nd7 $14) 10. d4 $1 $16 {[%emt 0:00:27][%mdl 512]} Bg7 {[%emt 0:00:53]} 11. dxe5 {[%emt 0:00:05]} dxe5 {[%emt 0:00:00]} 12. Na3 {[%emt 0:02:13][%cal Bb1a3,Ba3c4,Bc4a5][%mdl 32]} O-O {[%emt 0:00:07]} 13. Bg5 {[%emt 0:00:01]} Qe7 {[%emt 0:00:16]} 14. Rad1 {[%emt 0:00:11]} Qe6 {[%emt 0:00:16]} 15. Qb3 {[%emt 0:00:04]} Qe7 {[%emt 0:01:02]} (15... Qxb3 $142 16. axb3 (16. cxb3 a5 $16) 16... a5) 16. Nc4 {[%emt 0:00:12]} Rab8 {[%emt 0:00:11]} 17. Qc3 {[%emt 0:00:28] White has more active pieces.} Qe6 {[%emt 0:00:27]} 18. b3 {[%emt 0:00:11]} ({Worse is} 18. Nxe5 Nh5 19. f4 f6 20. Qxc6 Qxc6 21. Nxc6 Rxb2 $15 (21... fxg5 22. Nxb8 Rxb8 23. fxg5 $11)) 18... Nd7 {[%emt 0:00:21]} 19. Na5 {[%emt 0:00:23]} c5 {[%emt 0:00:14]} 20. Re2 {[%emt 0:00:38]} Rb4 {[%emt 0:00:17]} 21. Nc4 {[%emt 0:00:17]} Nb6 {[%emt 0:00:12][%cal Rb6c4]} 22. a3 {[%emt 0:00:05]} Rb5 {[%emt 0:00:02]} 23. Red2 {[%emt 0:00:35]} (23. Na5 $18) 23... Nxc4 {[%emt 0:00:06]} 24. bxc4 {[%emt 0:00:00]} Rbb8 {[%emt 0:01:14]} 25. Rd5 {[%emt 0:00:03]} f5 {[%emt 0:00:11]} 26. Be3 {[%emt 0:00:17]} fxe4 {[%emt 0:01:35]} (26... Rf7 $16 27. Bxc5 Bf6) 27. Bxc5 $18 {[%emt 0:00:06]} Rf4 {[%emt 0:00:01]} (27... Rfe8 28. Rd7 Bh6 29. Rxc7 Rbc8) 28. Rd8+ {[%emt 0:00:36]} Rxd8 {[%emt 0:00:02]} 29. Rxd8+ {[%emt 0:00:00][%cal Bd1d8,Bd8c8,Bc8e8][%mdl 32]} Kf7 {[%emt 0:00:00]} (29... Bf8 $142 30. Qb4 e3 31. Bxf8 (31. Rxf8+ Rxf8 32. Bxf8 a5 $18) (31. fxe3 Rf1+ 32. Kh2 e4 $18) 31... exf2+ 32. Kf1 Kf7) 30. Qa5 {[%emt 0:00:36]} Qc6 {[%emt 0:00:51]} 31. Rc8 {[%emt 0:00:06]} Qf6 {[%emt 0:00:01]} 32. Qxc7+ {[%emt 0:00:15] White mates.} Ke6 {[%emt 0:00:01][%cal Bf7e6,Be6f5,Bf5g5][%mdl 32]} 33. Re8+ {[%emt 0:00:14]} Kf5 {[%emt 0:00:02]} 34. Qd7+ {[%emt 0:00:01]} Kg5 {[%emt 0:00:01]} 35. Be7 {[%emt 0:00:01] Weighted Error Value: White=0.08 (flawless) /Black=0.58.  Mistake:       	White=1     	Black=5      OK:         	White=7     	Black=5      Best:        	White=3     	Black=1      Brilliant:      	White=1     	---} 1-0

[Event "CCT Julius Baer-D1 2024"]
[Site "Online"]
[Date "2024.09.27"]
[Round "1.2"]
[White "Carlsen, Magnus"]
[Black "Nepomniachtchi, Ian"]
[Result "1/2-1/2"]
[ECO "E04"]
[WhiteElo "2899"]
[BlackElo "2829"]
[Annotator "TA"]
[PlyCount "156"]
[EventDate "2024.09.25"]
[EventType "swiss"]
[EventCountry "NET"]
[SourceTitle "playchess.com"]
[Source "ChessBase"]
[SourceQuality "1"]
[TimeControl "600+2"]

{[%evp 63,156,91,92,93,100,106,117,87,297,305,318,329,469,464,445,157,157,0,0,0,0,0,0,0,0,0,0,0,0,0,5,5,5,5,5,5,59,59,59,59,91,91,91,91,91,91,91,91,91,91,91,91,91,91,91,5,5,5,5,5,5,5,5,0,0,0,0,0,0,0,0,0,0,0,0,0,0,0,0,0,0,0,0,0,0,0,0,0,0,0,0,0,0,0,0]} 1. d4 {[%emt 0:00:03]} Nf6 {[%emt 0:00:04]} 2. c4 {[%emt 0:00:01]} e6 {[%emt 0:00:01]} 3. Nf3 {[%emt 0:00:01]} d5 {[%emt 0:00:02]} 4. g3 {[%emt 0:00:00]} dxc4 {[%emt 0:00:05]} 5. Bg2 {[%emt 0:00:08]} c5 {[%emt 0:00:03]} 6. Qa4+ {[%emt 0:00:02]} Bd7 {[%emt 0:00:37] E04: Open Catalan: 5 Nf3.} 7. Qxc4 {[%emt 0:00:02]} b5 {[%emt 0:00:01]} 8. Qc2 {[%emt 0:00:14]} Nc6 {[%emt 0:00:18]} 9. dxc5 {[%emt 0:00:02]} Nb4 {[%emt 0:00:09]} 10. Qd2 $146 {[%emt 0:00:57]} ({Predecessor:} 10. Qb3 Bxc5 11. a3 Nbd5 12. Ne5 Rc8 13. O-O Qb6 14. Nd2 Ne7 15. Ne4 Nxe4 16. Bxe4 {1-0 Rudolf,M (1992)-Yasmo,D (2192) Bamberg op 6th 2024 (6)}) 10... Bxc5 {[%emt 0:00:05]} 11. Ne5 {[%emt 0:00:10]} Rc8 {[%emt 0:00:07]} 12. Nc3 {[%emt 0:00:09]} Bd4 {[%emt 0:01:23]} 13. Nxd7 {[%emt 0:00:56]} Qxd7 {[%emt 0:00:03]} 14. O-O {[%emt 0:00:07]} O-O {[%emt 0:00:08]} 15. Ne4 {[%emt 0:00:32]} Nc2 {[%emt 0:01:07]} 16. Nxf6+ {[%emt 0:00:01]} gxf6 {[%emt 0:00:00]} 17. Rb1 {[%emt 0:00:06]} Rfd8 {[%emt 0:00:04]} 18. Qh6 {[%emt 0:00:26]} Qe7 {[%emt 0:00:02]} 19. Bf4 {[%emt 0:01:18]} f5 {[%emt 0:00:09]} 20. e4 {[%emt 0:00:45]} Bg7 {[%emt 0:00:09]} 21. Qh5 {[%emt 0:00:03]} fxe4 {[%emt 0:00:31]} 22. Bxe4 {[%emt 0:01:02]} f5 {[%emt 0:00:02]} 23. Bxc2 {[%emt 0:00:12]} Rxc2 {[%emt 0:00:03]} 24. Rbd1 {[%emt 0:00:01]} Rcc8 {[%emt 0:00:18]} 25. Qe2 {[%emt 0:00:06]} a6 {[%emt 0:00:09]} 26. Rxd8+ {[%emt 0:00:08]} Rxd8 {[%emt 0:00:03]} 27. Re1 {[%emt 0:00:01]} Re8 {[%emt 0:00:41]} 28. Be5 {[%emt 0:00:08]} Bxe5 {[%emt 0:00:14]} 29. Qxe5 {[%emt 0:00:00]} Kf7 {[%emt 0:00:02]} 30. Rc1 {[%emt 0:00:07]} Qf6 {[%emt 0:00:18]} 31. Qd6 {[%emt 0:00:18]} Re7 {[%emt 0:00:41]} 32. b4 {[%emt 0:00:15]} Qb2 {[%emt 0:00:05] [#]} 33. Qf4 $1 {[%emt 0:00:18]} Kg6 {[%emt 0:01:13]} 34. h4 {[%emt 0:00:01]} h6 {[%emt 0:00:02]} 35. Rc8 {[%emt 0:00:47]} Kh7 $2 {[%emt 0:00:24]} (35... Rd7 $16 {was called for.}) 36. Qd6 $18 {[%emt 0:00:11]} Qg7 {[%emt 0:00:18]} 37. h5 {[%emt 0:00:09]} (37. Qxa6 Qe5 38. Qa8 f4) 37... e5 {[%emt 0:00:29]} (37... Qg5 $142 38. Ra8 (38. Qxa6 f4 $18) 38... Qc1+ 39. Kg2 Qc7 40. Qxc7 (40. Rxa6 Qxd6 41. Rxd6 Kg7 $18) (40. Qxa6 Qd7 $18) 40... Rxc7 41. Rxa6 f4 42. Rxe6 (42. gxf4 Rc4 $18) 42... fxg3 43. fxg3 (43. Kxg3 Rg7+ 44. Kf4 Rf7+ 45. Ke3 Rf5 $18) 43... Rc4) 38. Qxa6 $18 {[%emt 0:00:15]} f4 {[%emt 0:00:06]} 39. Rc3 $2 {[%emt 0:01:08]} (39. Qxb5 $18 fxg3 40. Qd3+ e4 41. Qxg3) 39... e4 $16 {[%emt 0:00:04] [#]} 40. Qg6+ $2 {[%emt 0:00:01]} ({White should play} 40. Qd6 $1 $16) 40... Qxg6 $11 {[%emt 0:00:02]} 41. hxg6+ {[%emt 0:00:01]} Kxg6 {[%emt 0:00:00]} 42. gxf4 {[%emt 0:00:00]} Ra7 {[%emt 0:00:04]} 43. Rc5 {[%emt 0:00:04]} Rxa2 {[%emt 0:00:02]} 44. Rxb5 {[%emt 0:00:00]} Rb2 {[%emt 0:00:01]} 45. Kf1 {[%emt 0:00:05]} h5 {[%emt 0:00:05]} 46. Rg5+ {[%emt 0:00:02]} Kf6 {[%emt 0:00:10]} 47. Rxh5 {[%emt 0:00:07]} Rxb4 {[%emt 0:00:01]} 48. Ke2 {[%emt 0:00:00]} Rb2+ {[%emt 0:00:20]} 49. Ke3 {[%emt 0:00:01]} Rb3+ {[%emt 0:00:00]} (49... Rb1 $11) 50. Kxe4 $14 {[%emt 0:00:01]} Rb4+ {[%emt 0:00:00]} 51. Kf3 {[%emt 0:00:01]} Rb2 {[%emt 0:00:01]} 52. Ra5 {[%emt 0:00:02]} Rc2 {[%emt 0:00:01]} 53. Kg3 {[%emt 0:00:01]} Rc1 {[%emt 0:00:01]} 54. Kg4 {[%emt 0:00:03]} Rg1+ {[%emt 0:00:01]} 55. Kf3 {[%emt 0:00:00]} Rb1 {[%emt 0:00:00]} 56. Ra3 {[%emt 0:00:04]} Kf5 {[%emt 0:00:03]} 57. Rc3 {[%emt 0:00:00]} Ra1 {[%emt 0:00:01]} 58. Rc5+ {[%emt 0:00:02]} Kf6 {[%emt 0:00:01]} 59. f5 {[%emt 0:00:01]} (59. Rc8 $16) 59... Kg5 {[%emt 0:00:02]} 60. Kg3 {[%emt 0:00:01]} Rg1+ {[%emt 0:00:01]} 61. Kh2 {[%emt 0:00:00]} Ra1 {[%emt 0:00:02]} 62. Kg2 {[%emt 0:00:01]} Rb1 {[%emt 0:00:00]} 63. f3 {[%emt 0:00:03]} Ra1 {[%emt 0:00:08]} 64. Kg3 {[%emt 0:00:03]} Rg1+ {[%emt 0:00:01]} 65. Kf2 {[%emt 0:00:00]} Ra1 {[%emt 0:00:00]} 66. Ke3 {[%emt 0:00:00]} Re1+ {[%emt 0:00:02]} 67. Kd4 {[%emt 0:00:02]} Kf6 {[%emt 0:00:03]} 68. f4 {[%emt 0:00:01]} Rf1 {[%emt 0:00:05]} 69. Ke4 {[%emt 0:00:01]} Re1+ {[%emt 0:00:01]} 70. Kf3 {[%emt 0:00:01]} Rf1+ {[%emt 0:00:00]} 71. Kg3 {[%emt 0:00:00]} Rg1+ {[%emt 0:00:01]} 72. Kf2 {[%emt 0:00:01]} Ra1 {[%emt 0:00:01]} 73. Re5 {[%emt 0:00:01]} Rb1 {[%emt 0:00:01]} 74. Kf3 {[%emt 0:00:01]} Rf1+ {[%emt 0:00:01]} 75. Ke4 {[%emt 0:00:01]} Re1+ {[%emt 0:00:00]} 76. Kf3 {[%emt 0:00:01]} Rf1+ {[%emt 0:00:01]} 77. Ke4 {[%emt 0:00:02]} Re1+ {[%emt 0:00:01]} 78. Kf3 {[%emt 0:00:00]} Rf1+ {[%emt 0:00:00]} 1/2-1/2

[Event "CCT Julius Baer-D1 2024"]
[Site "Online"]
[Date "2024.09.27"]
[Round "1.2"]
[White "Bigfish"]
[Black "Firouzja, Alireza"]
[Result "1/2-1/2"]
[ECO "D50"]
[WhiteElo "2821"]
[BlackElo "2863"]
[Annotator "TA"]
[PlyCount "55"]
[EventDate "2024.09.25"]
[EventType "swiss"]
[EventCountry "NET"]
[SourceTitle "playchess.com"]
[Source "ChessBase"]
[SourceQuality "1"]
[TimeControl "600+2"]

{[%evp 16,55,29,24,22,-1,0,-4,-6,-8,-12,-12,-17,-14,-4,-60,-51,-91,-92,-92,-56,-46,0,0,0,0,0,0,0,0,0,0,0,0,0,0,0,0,0,0,0,0]} 1. d4 {[%emt 0:00:03]} d5 {[%emt 0:00:05]} 2. Nf3 {[%emt 0:00:03]} Nf6 {[%emt 0:00:01]} 3. c4 {[%emt 0:00:02]} e6 {[%emt 0:00:05]} 4. Nc3 {[%emt 0:00:03]} c5 {[%emt 0:00:11]} 5. Bg5 {[%emt 0:00:10]} cxd4 {[%emt 0:00:06]} 6. Nxd4 {[%emt 0:00:05]} dxc4 {[%emt 0:00:09]} 7. e3 {[%emt 0:00:07]} Be7 {[%emt 0:00:05]} 8. Bxc4 {[%emt 0:00:05]} O-O {[%emt 0:00:06]} 9. O-O {[%emt 0:00:01]} Bd7 {[%emt 0:00:01]} 10. Qb3 {[%emt 0:00:08]} Nc6 {[%emt 0:00:04]} 11. Nxc6 {[%emt 0:01:02]} (11. Qxb7 Na5 12. Qa6 Bc8 13. Bxf6 (13. Qb5 $2 a6 $19) 13... Bxa6 14. Bxe7 Qxe7 $15) 11... Bxc6 {[%emt 0:00:01]} 12. Rfd1 {[%emt 0:00:05]} Qa5 {[%emt 0:00:01]} 13. Bf4 {[%emt 0:00:08]} Rfd8 {[%emt 0:00:07]} 14. h3 {[%emt 0:00:06]} h6 {[%emt 0:00:01]} 15. Ne2 {[%emt 0:00:34]} (15. Bb5 $11) 15... Nd5 {[%emt 0:00:37]} 16. a4 {[%emt 0:03:12]} Nxf4 {[%emt 0:00:36]} 17. Nxf4 {[%emt 0:00:06][%cal Oc4e6]} Rxd1+ {[%emt 0:00:02]} 18. Rxd1 {[%emt 0:00:24][%cal Oc4e6]} Rd8 {[%emt 0:01:54]} ({Reject} 18... Bxa4 $6 19. Qxb7 Bxd1 20. Qxa8+ Qd8 21. Qxa7 $16) (18... Bf6 $15 19. Bb5 Qb6) 19. Rxd8+ $1 $11 {[%emt 0:00:08] The position is equal.} Bxd8 {[%emt 0:00:00] A strong pair of Bishops.} 20. Bxe6 $1 {[%emt 0:01:22]} fxe6 {[%emt 0:00:06]} 21. Qxe6+ {[%emt 0:00:01]} Kh7 {[%emt 0:00:02] [#] ...Qe1+ is the strong threat.} 22. Qg6+ {[%emt 0:00:03]} Kh8 {[%emt 0:00:08]} (22... Kg8 $5 23. Qe6+ $8 Kh7 (23... Kh8 24. Ng6+ Kh7 25. Nf8+ Kh8 26. Ng6+ Kh7 27. Nf8+ Kh8 28. Ng6+ $11) 24. Qg6+ Kh8 $11) 23. Qf7 {[%emt 0:00:01] Prevents Bc7.} Bf6 {[%emt 0:00:51]} 24. Ng6+ {[%emt 0:00:11]} Kh7 {[%emt 0:00:00]} 25. Nf8+ {[%emt 0:00:00]} Kh8 {[%emt 0:00:01]} 26. Ng6+ {[%emt 0:00:01]} Kh7 {[%emt 0:00:00]} 27. Nf8+ {[%emt 0:00:00]} Kh8 {[%emt 0:00:01]} 28. Ng6+ {[%emt 0:00:01] Weighted Error Value: White=0.10 (very precise) /Black=0.09 (flawless) .  Mistake:       	White=1     	Black=1      Inaccurate:     	White=1     	Black=1      OK:         	White=8     	Black=5      Best:        	---       	Black=1      Strong:       	White=2     	---} 1/2-1/2